fUST/lending_fUST_20250530
["ID","MTS","AMOUNT","RATE_DAILY","PERIOD"]
[363021952,1748551840435,-482.54944565,0.00019452,2]
[363021953,1748551840446,-430.0,0.00019452,2]
[363021954,1748551840456,-430.0,0.00019452,2]
[363021955,1748551840466,-1000.0,0.00019452,2]
[363021956,1748551840477,-451.81503509,0.00019452,2]
[363021957,1748551840487,-430.0,0.00019452,2]
[363021958,1748551840498,-796.78,0.00019452,2]
[363021959,1748551840509,-430.0,0.00019452,2]
[363021960,1748551840520,-430.0,0.00019452,2]
[363021961,1748551840530,-430.0,0.00019452,2]
[363021962,1748551840540,-430.0,0.00019452,2]
[363021963,1748551840550,-430.0,0.00019452,2]
[363021964,1748551840560,-470.0,0.00019452,2]
[363021965,1748551840569,-430.0,0.00019452,2]
[363021966,1748551840579,-204.24912166,0.00019452,2]
[363021967,1748551840589,-430.0,0.00019452,2]
[363021968,1748551840598,-450.0,0.00019452,2]
[363021969,1748551840608,-430.0,0.00019452,2]
[363021970,1748551840619,-430.0,0.00019452,2]
[363021971,1748551840628,-430.0,0.00019452,2]
[363021972,1748551840638,-430.0,0.00019452,2]
[363021973,1748551840648,-430.0,0.00019452,2]
[363021974,1748551840658,-430.0,0.00019452,2]
[363021975,1748551840667,-430.0,0.00019452,2]
[363021976,1748551840677,-430.0,0.00019452,2]
[363021977,1748551840687,-430.0,0.00019452,2]
[363021978,1748551840696,-430.0,0.00019452,2]
[363021979,1748551840706,-430.0,0.00019452,2]
[363021980,1748551840715,-404.48283474,0.00019452,2]
[363021981,1748551840726,-485.37,0.00019452,2]
[363021982,1748551840735,-470.0,0.00019452,2]
[363021983,1748551840745,-430.0,0.00019452,2]
[363021984,1748551840755,-466.73,0.00019452,2]
[363021985,1748551840765,-430.0,0.00019452,2]
[363021986,1748551840775,-430.0,0.00019452,2]
[363021987,1748551840785,-430.0,0.00019452,2]
[363021988,1748551840797,-430.0,0.00019452,2]
[363021989,1748551840807,-941.06,0.00019452,2]
[363021990,1748551840816,-470.0,0.00019452,2]
[363021991,1748551840826,-316.51990883,0.00019452,2]
[363021992,1748551840836,-430.0,0.00019452,2]
[363021993,1748551840845,-430.0,0.00019452,2]
[363021994,1748551840855,-405.76350598,0.00019452,2]
[363021995,1748551840865,-430.0,0.00019452,2]
[363021996,1748551840875,-593.18,0.00019452,2]
[363021997,1748551840885,-430.0,0.00019452,2]
[363021998,1748551840894,-2842.51,0.00019452,2]
[363021999,1748551840904,-470.0,0.00019452,2]
[363022000,1748551840914,-329.67536577,0.00019452,2]
[363022001,1748551840924,-471.55314848,0.00019452,2]
[363022002,1748551840934,-430.0,0.00019452,2]
[363022003,1748551840944,-470.0,0.00019452,2]
[363022004,1748551840954,-507.67760231,0.00019452,2]
[363022005,1748551840964,-430.0,0.00019452,2]
[363022006,1748551840974,-430.0,0.00019452,2]
[363022007,1748551840984,-430.0,0.00019452,2]
[363022008,1748551840993,-430.0,0.00019452,2]
[363022009,1748551841003,-430.0,0.00019452,2]
[363022010,1748551841012,-430.0,0.00019452,2]
[363022011,1748551841022,-430.0,0.00019452,2]
[363022012,1748551841031,-470.0,0.00019452,2]
[363022013,1748551841041,-430.0,0.00019452,2]
[363022014,1748551841051,-5463.14,0.00019452,2]
[363022015,1748551841060,-430.0,0.00019452,2]
[363022016,1748551841070,-430.0,0.00019452,2]
[363022017,1748551841079,-473.24580113,0.00019452,2]
[363022018,1748551841089,-430.0,0.00019452,2]
[363022019,1748551841099,-430.0,0.00019452,2]
[363022020,1748551841108,-430.0,0.00019452,2]
[363022021,1748551841118,-1066.81,0.00019452,2]
[363022022,1748551841127,-510.38329689,0.00019452,2]
[363022023,1748551841137,-439.86840454,0.00019452,2]
[363022024,1748551841147,-430.0,0.00019452,2]
[363022025,1748551841156,-430.0,0.00019452,2]
[363022026,1748551841166,-430.0,0.00019452,2]
[363022027,1748551841175,-1566.35,0.00019452,2]
[363022028,1748551841185,-5971.14,0.00019452,2]
[363022029,1748551841195,-430.0,0.00019452,2]
[363022030,1748551841205,-430.0,0.00019452,2]
[363022031,1748551841215,-1182.19,0.00019452,2]
[363022032,1748551841225,-433.37,0.00019452,2]
[363022033,1748551841235,-516.02723809,0.00019452,2]
[363022035,1748551841245,-430.0,0.00019452,2]
[363022036,1748551841254,-430.0,0.00019452,2]
[363022037,1748551841264,-450.0,0.00019452,2]
[363022038,1748551841274,-430.0,0.00019452,2]
[363022039,1748551841284,-430.0,0.00019452,2]
[363022040,1748551841293,-430.0,0.00019452,2]
[363022041,1748551841303,-430.0,0.00019452,2]
[363022042,1748551841312,-430.0,0.00019452,2]
[363022043,1748551841322,-430.0,0.00019452,2]
[363022044,1748551841332,-430.0,0.00019452,2]
[363022045,1748551841342,-2029.43,0.00019452,2]
[363022046,1748551841351,-430.0,0.00019452,2]
[363022047,1748551841361,-5130.79,0.00019452,2]
[363022048,1748551841371,-430.0,0.00019452,2]
[363022049,1748551841380,-314.73981873,0.00019452,2]
[363022050,1748551841390,-430.0,0.00019452,2]
[363022051,1748551841399,-443.86,0.00019452,2]
[363022052,1748551841409,-430.0,0.00019452,2]
[363022053,1748551841515,-430.0,0.00019452,2]
[363022054,1748551841533,-516.8156173,0.00019452,2]
[363022055,1748551841542,-1198.79,0.00019452,2]
[363022056,1748551841551,-862.8625532,0.00019452,2]
[363022057,1748551842174,-219.80683108,0.000189,2]
[363022058,1748551842184,-500.0,0.00019167,2]
[363022059,1748551842194,-430.0,0.00019178,2]
[363022060,1748551842203,-430.0,0.00019178,2]
[363022061,1748551842212,-430.0,0.00019178,2]
[363022062,1748551842222,-430.0,0.00019178,2]
[363022063,1748551842231,-487.2374468,0.00019452,2]
[363022064,1748551842241,-430.0,0.00019452,2]
[363022065,1748551842250,-430.0,0.00019452,2]
[363022066,1748551842260,-430.0,0.00019452,2]
[363022067,1748551842270,-371.91294075,0.00019452,2]
[363022068,1748551842432,-58.08705925,0.00019452,2]
[363022069,1748551842441,-224.9183361,0.00019452,2]
[363022071,1748551842471,-374.49646234,0.00019167,2]
[363022072,1748551842481,-285.0816639,0.00019452,2]
[363022073,1748551842490,-1314.15,0.00019452,2]
[363022074,1748551842499,-430.0,0.00019452,2]
[363022075,1748551842508,-294.77071097,0.00019452,2]
[363022076,1748551842520,-135.22928903,0.00019452,2]
[363022077,1748551842530,-430.0,0.00019452,2]
[363022078,1748551842539,-470.0,0.00019452,2]
[363022080,1748551842549,-450.0,0.00019452,2]
[363022082,1748551842558,-430.0,0.00019452,2]
[363022084,1748551842568,-430.0,0.00019452,2]
[363022086,1748551842578,-430.0,0.00019452,2]
[363022087,1748551842587,-346.95830907,0.00019452,2]
[363022088,1748551842599,-85.29169093,0.00019452,2]
[363022089,1748551842609,-558.14795062,0.00019452,2]
[363022090,1748551842618,-430.0,0.00019452,2]
[363022091,1748551842627,-456.31,0.00019452,2]
[363022092,1748551842636,-430.0,0.00019452,2]
[363022093,1748551842646,-430.0,0.00019452,2]
[363022094,1748551842655,-3709.78,0.00019452,2]
[363022095,1748551842665,-430.0,0.00019452,2]
[363022096,1748551842674,-430.0,0.00019452,2]
[363022097,1748551842683,-430.0,0.00019452,2]
[363022098,1748551842693,-513.6,0.00019452,2]
[363022099,1748551842702,-430.0,0.00019452,2]
[363022100,1748551842711,-3104.15,0.00019452,2]
[363022101,1748551842720,-430.0,0.00019452,2]
[363022102,1748551842730,-430.0,0.00019452,2]
[363022103,1748551842739,-430.0,0.00019452,2]
[363022104,1748551842749,-250.83,0.00019452,2]
[363022105,1748551842759,-1498.94627475,0.00019452,2]
[363022106,1748551842771,-3345.64372525,0.00019452,2]
[363022107,1748551842781,-430.0,0.00019452,2]
[363022108,1748551842790,-430.0,0.00019452,2]
[363022109,1748551842799,-2281.59,0.00019452,2]
[363022110,1748551842809,-430.0,0.00019452,2]
[363022111,1748551842818,-297.14849485,0.00019452,2]
[363022112,1748551842827,-430.0,0.00019452,2]
[363022113,1748551842837,-470.0,0.00019452,2]
[363022114,1748551842847,-430.0,0.00019452,2]
[363022115,1748551842857,-470.0,0.00019452,2]
[363022116,1748551842868,-430.0,0.00019452,2]
[363022117,1748551842877,-430.0,0.00019452,2]
[363022118,1748551842887,-2340.69,0.00019452,2]
[363022119,1748551842897,-2671.95,0.00019452,2]
[363022120,1748551842906,-606.49,0.00019452,2]
[363022121,1748551842915,-430.0,0.00019452,2]
[363022122,1748551842924,-1232.63,0.00019452,2]
[363022123,1748551842934,-561.46362119,0.00019452,2]
[363022124,1748551842943,-400.0,0.00019452,2]
[363022125,1748551842954,-430.0,0.00019452,2]
[363022126,1748551842963,-425.96720372,0.00019452,2]
[363022127,1748551842972,-430.0,0.00019452,2]
[363022128,1748551842982,-5169.19,0.00019452,2]
[363022129,1748551842991,-430.0,0.00019452,2]
[363022130,1748551843000,-430.0,0.00019452,2]
[363022131,1748551843009,-430.0,0.00019452,2]
[363022132,1748551843018,-500.0,0.00019452,2]
[363022133,1748551843027,-470.0,0.00019452,2]
[363022134,1748551843036,-430.0,0.00019452,2]
[363022135,1748551843046,-430.0,0.00019452,2]
[363022136,1748551843055,-470.0,0.00019452,2]
[363022137,1748551843064,-430.0,0.00019452,2]
[363022138,1748551843170,-430.0,0.00019452,2]
[363022139,1748551843181,-430.0,0.00019452,2]
[363022140,1748551843190,-430.0,0.00019452,2]
[363022141,1748551843199,-8190.92,0.00019452,2]
[363022142,1748551843209,-430.0,0.00019452,2]
[363022143,1748551843218,-658.07,0.00019452,2]
[363022144,1748551843227,-2520.86,0.00019452,2]
[363022145,1748551843236,-488.47,0.00019452,2]
[363022146,1748551843245,-8143.21,0.00019452,2]
[363022147,1748551843255,-470.0,0.00019452,2]
[363022148,1748551843264,-430.0,0.00019452,2]
[363022149,1748551843273,-430.0,0.00019452,2]
[363022150,1748551843282,-430.0,0.00019452,2]
[363022151,1748551843291,-430.0,0.00019452,2]
[363022152,1748551843300,-430.0,0.00019452,2]
[363022153,1748551843309,-430.0,0.00019452,2]
[363022154,1748551843319,-430.0,0.00019452,2]
[363022155,1748551843328,-430.0,0.00019452,2]
[363022156,1748551843338,-430.0,0.00019452,2]
[363022157,1748551843347,-430.0,0.00019452,2]
[363022158,1748551843356,-430.0,0.00019452,2]
[363022159,1748551843366,-384.05136376,0.00019452,2]
[363022160,1748551843376,-430.0,0.00019452,2]
[363022161,1748551843385,-471.01340234,0.00019452,2]
[363022162,1748551843395,-430.0,0.00019452,2]
[363022163,1748551843404,-430.0,0.00019452,2]
[363022164,1748551843413,-440.0,0.00019452,2]
[363022165,1748551843423,-400.0,0.00019452,2]
[363022166,1748551843432,-430.0,0.00019452,2]
[363022167,1748551843446,-430.0,0.00019452,2]
[363022168,1748551843455,-430.0,0.00019452,2]
[363022169,1748551843464,-430.0,0.00019452,2]
[363022170,1748551843475,-440.0,0.00019452,2]
[363022171,1748551843484,-430.0,0.00019452,2]
[363022172,1748551843494,-430.0,0.00019452,2]
[363022173,1748551843503,-430.0,0.00019452,2]
[363022174,1748551843512,-733.92,0.00019452,2]
[363022175,1748551843521,-2103.79,0.00019452,2]
[363022176,1748551843531,-430.0,0.00019452,2]
[363022177,1748551843540,-430.0,0.00019452,2]
[363022178,1748551843549,-430.0,0.00019452,2]
[363022179,1748551843559,-430.0,0.00019452,2]
[363022180,1748551843568,-5509.44,0.00019452,2]
[363022181,1748551843577,-430.0,0.00019452,2]
[363022182,1748551843586,-430.0,0.00019452,2]
[363022183,1748551843595,-430.0,0.00019452,2]
[363022184,1748551843604,-430.0,0.00019452,2]
[363022185,1748551843614,-3425.39,0.00019452,2]
[363022186,1748551843623,-430.0,0.00019452,2]
[363022187,1748551843632,-1147.37,0.00019452,2]
[363022188,1748551843642,-470.0,0.00019452,2]
[363022189,1748551843651,-450.0,0.00019452,2]
[363022190,1748551843660,-430.0,0.00019452,2]
[363022191,1748551843669,-3880.44,0.00019452,2]
[363022192,1748551843679,-473.54694317,0.00019452,2]
[363022193,1748551843689,-430.0,0.00019452,2]
[363022194,1748551843698,-473.7476096,0.00019452,2]
[363022195,1748551843708,-752.82,0.00019452,2]
[363022196,1748551843718,-627.48,0.00019452,2]
[363022197,1748551843731,-179.44015182,0.00019452,2]
[363022198,1748551843740,-430.0,0.00019452,2]
[363022199,1748551843749,-430.0,0.00019452,2]
[363022200,1748551843759,-430.0,0.00019452,2]
[363022201,1748551843768,-1201.17,0.00019452,2]
[363022202,1748551843777,-430.0,0.00019452,2]
[363022203,1748551843787,-430.0,0.00019452,2]
[363022204,1748551843796,-612.67,0.00019452,2]
[363022205,1748551843805,-500.0,0.00019452,2]
[363022206,1748551843814,-381.77764351,0.00019452,2]
[363022207,1748551843825,-430.0,0.00019452,2]
[363022208,1748551843835,-430.0,0.00019452,2]
[363022209,1748551843844,-2687.0,0.00019452,2]
[363022210,1748551843853,-460.09,0.00019452,2]
[363022211,1748551843862,-430.0,0.00019452,2]
[363022213,1748551843871,-1161.98,0.00019452,2]
[363022214,1748551843880,-430.0,0.00019452,2]
[363022216,1748551843890,-4727.61,0.00019452,2]
[363022218,1748551843899,-430.0,0.00019452,2]
[363022219,1748551843908,-270.0,0.00019452,2]
[363022221,1748551843917,-450.0,0.00019452,2]
[363022222,1748551843926,-471.24675956,0.00019452,2]
[363022223,1748551843936,-1299.99,0.00019452,2]
[363022224,1748551843945,-783.19,0.00019452,2]
[363022225,1748551843955,-430.0,0.00019452,2]
[363022226,1748551843964,-450.0,0.00019452,2]
[363022228,1748551843974,-430.0,0.00019452,2]
[363022229,1748551843984,-430.0,0.00019452,2]
[363022231,1748551843993,-430.0,0.00019452,2]
[363022233,1748551844002,-430.0,0.00019452,2]
[363022234,1748551844012,-430.0,0.00019452,2]
[363022236,1748551844021,-1233.0,0.00019452,2]
[363022237,1748551844031,-336.46,0.00019452,2]
[363022238,1748551844041,-470.0,0.00019452,2]
[363022239,1748551844051,-430.0,0.00019452,2]
[363022241,1748551844061,-430.0,0.00019452,2]
[363022242,1748551844070,-447.09911464,0.00019473,2]
[363022244,1748551844080,-500.0,0.00019473,2]
[363022245,1748551844090,-174.96345161,0.00019717,2]
[363022246,1748551844099,-177.77189404,0.00019721,2]
[363022247,1748551844108,-500.0,0.00019725,2]
[363022248,1748551844117,-500.0,0.00019725,2]
[363022249,1748551844126,-233.98697092,0.00019725,2]
[363022250,1748551844136,-435.26812203,0.00019726,2]
[363022251,1748551844145,-445.52632558,0.00019726,2]
[363022252,1748551844154,-405.14864995,0.00019726,2]
[363022253,1748551844163,-430.0,0.00019726,2]
[363022254,1748551844172,-523.4,0.00019726,2]
[363022255,1748551844182,-430.0,0.00019726,2]
[363022256,1748551844191,-430.0,0.00019726,2]
[363022257,1748551844200,-157.4,0.00019726,2]
[363022258,1748551844209,-430.0,0.00019726,2]
[363022259,1748551844218,-430.0,0.00019726,2]
[363022260,1748551844229,-430.0,0.00019726,2]
[363022261,1748551844238,-430.0,0.00019726,2]
[363022262,1748551844247,-430.0,0.00019726,2]
[363022263,1748551844256,-430.0,0.00019726,2]
[363022264,1748551844265,-539.02846265,0.00019726,2]
[363022265,1748551844274,-430.0,0.00019726,2]
[363022266,1748551844283,-170.26730873,0.00019726,2]
[363022267,1748551844292,-430.0,0.00019726,2]
[363022268,1748551844302,-430.0,0.00019726,2]
[363022269,1748551844311,-1668.85,0.00019726,2]
[363022270,1748551844320,-430.0,0.00019726,2]
[363022271,1748551844331,-230.16080414,0.00019726,2]
[363022272,1748551844339,-400.0,0.00019726,2]
[363022273,1748551844349,-430.0,0.00019726,2]
[363022274,1748551844358,-430.0,0.00019726,2]
[363022275,1748551844368,-430.0,0.00019726,2]
[363022276,1748551844377,-370.0,0.00019726,2]
[363022277,1748551844386,-430.0,0.00019726,2]
[363022278,1748551844395,-430.0,0.00019726,2]
[363022279,1748551844404,-430.0,0.00019726,2]
[363022280,1748551844414,-430.0,0.00019726,2]
[363022281,1748551844423,-430.0,0.00019726,2]
[363022282,1748551844434,-430.0,0.00019726,2]
[363022283,1748551844445,-430.0,0.00019726,2]
[363022284,1748551844454,-430.0,0.00019726,2]
[363022285,1748551844464,-430.0,0.00019726,2]
[363022286,1748551844474,-430.0,0.00019726,2]
[363022287,1748551844483,-430.0,0.00019726,2]
[363022288,1748551844493,-430.0,0.00019726,2]
[363022289,1748551844501,-430.0,0.00019726,2]
[363022290,1748551844512,-430.0,0.00019726,2]
[363022291,1748551844522,-260.0,0.00019726,2]
[363022292,1748551844531,-430.0,0.00019726,2]
[363022293,1748551844540,-191.06119385,0.00019726,2]
[363022294,1748551844550,-430.0,0.00019726,2]
[363022295,1748551844559,-430.0,0.00019726,2]
[363022296,1748551844568,-430.0,0.00019726,2]
[363022297,1748551844578,-796.78,0.00019726,2]
[363022298,1748551844587,-351.91810467,0.00019726,2]
[363022299,1748551844596,-430.0,0.00019726,2]
[363022300,1748551844605,-430.0,0.00019726,2]
[363022301,1748551844613,-430.0,0.00019726,2]
[363022302,1748551844622,-430.0,0.00019726,2]
[363022303,1748551844631,-242.67091253,0.00019726,2]
[363022304,1748551844641,-430.0,0.00019726,2]
[363022305,1748551844650,-430.0,0.00019726,2]
[363022306,1748551844659,-430.0,0.00019726,2]
[363022307,1748551844667,-430.0,0.00019726,2]
[363022308,1748551844676,-430.0,0.00019726,2]
[363022309,1748551844685,-430.0,0.00019726,2]
[363022310,1748551844695,-485.37,0.00019726,2]
[363022311,1748551844704,-430.0,0.00019726,2]
[363022312,1748551844713,-466.73,0.00019726,2]
[363022313,1748551844723,-430.0,0.00019726,2]
[363022314,1748551844732,-430.0,0.00019726,2]
[363022315,1748551844741,-941.06,0.00019726,2]
[363022316,1748551844751,-490.0,0.00019726,2]
[363022317,1748551844843,-259.47891798,0.00019726,2]
[363022318,1748551844853,-593.18,0.00019726,2]
[363022319,1748551844862,-430.0,0.00019726,2]
[363022320,1748551844871,-2842.51,0.00019726,2]
[363022321,1748551844880,-430.0,0.00019726,2]
[363022322,1748551844889,-430.0,0.00019726,2]
[363022323,1748551844898,-430.0,0.00019726,2]
[363022324,1748551844907,-430.0,0.00019726,2]
[363022325,1748551844916,-430.0,0.00019726,2]
[363022326,1748551844925,-420.0,0.00019726,2]
[363022327,1748551844934,-5463.14,0.00019726,2]
[363022328,1748551844943,-430.0,0.00019726,2]
[363022329,1748551844951,-430.0,0.00019726,2]
[363022330,1748551844960,-300.0,0.00019726,2]
[363022331,1748551844969,-430.0,0.00019726,2]
[363022332,1748551844979,-1066.81,0.00019726,2]
[363022333,1748551844990,-430.0,0.00019726,2]
[363022334,1748551844999,-430.0,0.00019726,2]
[363022335,1748551845007,-470.0,0.00019726,2]
[363022336,1748551845016,-1566.35,0.00019726,2]
[363022337,1748551845025,-5971.14,0.00019726,2]
[363022338,1748551845034,-430.0,0.00019726,2]
[363022339,1748551845044,-532.78637685,0.00019726,2]
[363022340,1748551845053,-1182.19,0.00019726,2]
[363022341,1748551845062,-433.37,0.00019726,2]
[363022342,1748551845071,-430.0,0.00019726,2]
[363022343,1748551845080,-430.0,0.00019726,2]
[363022344,1748551845089,-430.0,0.00019726,2]
[363022345,1748551845099,-490.0,0.00019726,2]
[363022346,1748551845108,-430.0,0.00019726,2]
[363022347,1748551845117,-430.0,0.00019726,2]
[363022348,1748551845126,-430.0,0.00019726,2]
[363022349,1748551845135,-430.0,0.00019726,2]
[363022350,1748551845144,-430.0,0.00019726,2]
[363022351,1748551845154,-2029.43,0.00019726,2]
[363022352,1748551845163,-430.0,0.00019726,2]
[363022353,1748551845172,-5130.79,0.00019726,2]
[363022354,1748551845181,-430.0,0.00019726,2]
[363022355,1748551845191,-430.0,0.00019726,2]
[363022356,1748551845200,-430.0,0.00019726,2]
[363022357,1748551845209,-430.0,0.00019726,2]
[363022358,1748551845218,-1198.79,0.00019726,2]
[363022359,1748551845229,-1350.1,0.00019726,2]
[363022360,1748551845239,-430.0,0.00019726,2]
[363022361,1748551845248,-430.0,0.00019726,2]
[363022362,1748551845257,-430.0,0.00019726,2]
[363022363,1748551845267,-430.0,0.00019726,2]
[363022364,1748551845276,-1314.15,0.00019726,2]
[363022365,1748551845286,-430.0,0.00019726,2]
[363022366,1748551845295,-430.0,0.00019726,2]
[363022367,1748551845304,-440.0,0.00019726,2]
[363022368,1748551845314,-430.0,0.00019726,2]
[363022369,1748551845323,-430.0,0.00019726,2]
[363022370,1748551845333,-432.25,0.00019726,2]
[363022371,1748551845342,-430.0,0.00019726,2]
[363022372,1748551845352,-430.0,0.00019726,2]
[363022373,1748551845361,-430.0,0.00019726,2]
[363022374,1748551845370,-456.31,0.00019726,2]
[363022375,1748551845379,-3709.78,0.00019726,2]
[363022376,1748551845389,-430.0,0.00019726,2]
[363022377,1748551845398,-373.52021058,0.00019726,2]
[363022378,1748551845408,-513.6,0.00019726,2]
[363022379,1748551845418,-430.0,0.00019726,2]
[363022380,1748551845427,-3104.15,0.00019726,2]
[363022381,1748551845440,-430.0,0.00019726,2]
[363022382,1748551845450,-430.0,0.00019726,2]
[363022383,1748551845459,-430.0,0.00019726,2]
[363022384,1748551845468,-4844.59,0.00019726,2]
[363022385,1748551845480,-430.0,0.00019726,2]
[363022386,1748551845490,-353.82857628,0.00019726,2]
[363022387,1748551845500,-2281.59,0.00019726,2]
[363022388,1748551845509,-430.0,0.00019726,2]
[363022389,1748551845519,-450.0,0.00019726,2]
[363022391,1748551845530,-430.0,0.00019726,2]
[363022393,1748551845541,-2340.69,0.00019726,2]
[363022394,1748551845550,-2671.95,0.00019726,2]
[363022395,1748551845560,-606.49,0.00019726,2]
[363022396,1748551845570,-430.0,0.00019726,2]
[363022397,1748551845580,-1232.63,0.00019726,2]
[363022398,1748551845589,-490.0,0.00019726,2]
[363022399,1748551845598,-5169.19,0.00019726,2]
[363022400,1748551845608,-430.0,0.00019726,2]
[363022401,1748551845617,-430.0,0.00019726,2]
[363022402,1748551845626,-430.0,0.00019726,2]
[363022403,1748551845635,-500.0,0.00019726,2]
[363022404,1748551845645,-303.49,0.00019726,2]
[363022405,1748551845654,-430.0,0.00019726,2]
[363022406,1748551845664,-236.34438071,0.00019726,2]
[363022407,1748551845673,-472.27976292,0.00019726,2]
[363022408,1748551845683,-401.58972257,0.00019726,2]
[363022409,1748551845693,-8190.92,0.00019726,2]
[363022411,1748551845702,-430.0,0.00019726,2]
[363022412,1748551845712,-658.07,0.00019726,2]
[363022413,1748551845721,-2520.86,0.00019726,2]
[363022414,1748551845731,-488.47,0.00019726,2]
[363022415,1748551845740,-8143.21,0.00019726,2]
[363022416,1748551845749,-470.0,0.00019726,2]
[363022418,1748551845759,-430.0,0.00019726,2]
[363022420,1748551845767,-332.31697522,0.00019726,2]
[363022421,1748551845777,-430.0,0.00019726,2]
[363022422,1748551845786,-430.0,0.00019726,2]
[363022423,1748551845795,-299.3332968,0.00019726,2]
[363022424,1748551845804,-470.0,0.00019726,2]
[363022425,1748551845813,-430.0,0.00019726,2]
[363022426,1748551845822,-430.0,0.00019726,2]
[363022427,1748551845831,-430.0,0.00019726,2]
[363022428,1748551845841,-490.0,0.00019726,2]
[363022429,1748551845850,-430.0,0.00019726,2]
[363022430,1748551845860,-430.0,0.00019726,2]
[363022431,1748551845869,-430.0,0.00019726,2]
[363022433,1748551845878,-430.0,0.00019726,2]
[363022435,1748551845887,-450.0,0.00019726,2]
[363022437,1748551845896,-733.92,0.00019726,2]
[363022438,1748551845905,-2103.79,0.00019726,2]
[363022440,1748551845915,-430.0,0.00019726,2]
[363022441,1748551845924,-430.0,0.00019726,2]
[363022442,1748551845933,-430.0,0.00019726,2]
[363022443,1748551845942,-430.0,0.00019726,2]
[363022444,1748551845951,-5509.44,0.00019726,2]
[363022445,1748551845960,-430.0,0.00019726,2]
[363022446,1748551845970,-430.0,0.00019726,2]
[363022447,1748551845980,-430.0,0.00019726,2]
[363022448,1748551845989,-475.51500222,0.00019726,2]
[363022449,1748551845999,-3425.39,0.00019726,2]
[363022450,1748551846008,-430.0,0.00019726,2]
[363022451,1748551846018,-1147.37,0.00019726,2]
[363022452,1748551846027,-430.0,0.00019726,2]
[363022453,1748551846036,-3880.44,0.00019726,2]
[363022454,1748551846046,-430.0,0.00019726,2]
[363022455,1748551846055,-752.82,0.00019726,2]
[363022456,1748551846065,-627.48,0.00019726,2]
[363022457,1748551846074,-430.0,0.00019726,2]
[363022458,1748551846084,-430.0,0.00019726,2]
[363022459,1748551846093,-430.0,0.00019726,2]
[363022460,1748551846103,-1201.17,0.00019726,2]
[363022461,1748551846112,-430.0,0.00019726,2]
[363022462,1748551846121,-430.0,0.00019726,2]
[363022463,1748551846131,-612.67,0.00019726,2]
[363022464,1748551846140,-443.92309113,0.00019726,2]
[363022465,1748551846149,-430.0,0.00019726,2]
[363022466,1748551846158,-430.0,0.00019726,2]
[363022467,1748551846167,-2687.0,0.00019726,2]
[363022468,1748551846177,-1161.98,0.00019726,2]
[363022469,1748551846186,-430.0,0.00019726,2]
[363022470,1748551846196,-4727.61,0.00019726,2]
[363022471,1748551846206,-420.0,0.00019726,2]
[363022472,1748551846215,-1299.99,0.00019726,2]
[363022473,1748551846226,-783.19,0.00019726,2]
[363022474,1748551846236,-430.0,0.00019726,2]
[363022475,1748551846246,-430.0,0.00019726,2]
[363022476,1748551846256,-430.0,0.00019726,2]